Cogmind - Beta 15 @@@ ROGUE MODE // 2025.08.06 @ 20:02:29 Player: beans Result: Destroyed by GU-PKZ(j) with Overtuned Pulse Rifle Performance ------------- Evolutions (0) 0 Regions Visited (3) 600 Robots Destroyed (7) 35 Value Destroyed (226) 226 Prototype IDs (0) 0 Alien Tech Used (0) 0 Bonus (716) 716 TOTAL SCORE: 1577 Bonus ------- Registered with UFD 300 Met Optimus in HQ 500 Friendly Fire -84 Cogmind --------- Core Integrity 0/250 Matter 290/300 Energy 82/100 System Corruption 0% Temperature Cool (12) Movement Core (200) Ox3 Location -7/Scraptown Parts ------- > --- POWER (1) -------- (None) > --- PROPULSION (2) --- (None) > --- UTILITY (2) ------ Improved Cooling System Coolant Injector > --- WEAPON (2) ------- Gauss Cannon > --- INVENTORY (5) ---- Mapping Drone Bay (3/3) Riot Gun Subdweller Machine Gun Remote Datajack Peak State ------------ > --- POWER ------------ Light Fission Core > --- PROPULSION ------- Advanced Treads > --- UTILITY ---------- Coolant Injector Mapping Drone Bay > --- WEAPON ----------- Heavy Battle Rifle Heavy Machine Gun > --- INVENTORY -------- Riot Gun Subdweller Machine Gun Subdweller Machine Gun Gauss Cannon Remote Datajack [Rating: 28] Favorites ----------- Power Light Fission Core Engine Ion Engine Power Core Light Fission Core Propulsion Aluminum Leg Treads Advanced Treads Leg Aluminum Leg Utility Coolant Injector Device Coolant Injector Weapon Heavy Battle Rifle Energy Gun Riot Gun Ballistic Gun Heavy Battle Rifle Ballistic Cannon Gauss Cannon Special Weapon Remote Datajack Build | -11 -10 -10 -7 ------- Run | Yrd Mat Sub Scr Slots Evolved . | . . . . Power . | . . . . Propulsion . | . . . . Utility . | . . . . Weapon . | . . . . Parts Attached 17 | 4 . 3 10 Power 3 | 1 . . 2 Engine 2 | 1 . . 1 Core 1 | . . . 1 Reactor . | . . . . Propulsion 3 | 2 . . 1 Treads 1 | . . . 1 Leg 2 | 2 . . . Wheel . | . . . . Hover . | . . . . Flight . | . . . . Utility 3 | . . . 3 Device 3 | . . . 3 Storage . | . . . . Processor . | . . . . Hackware . | . . . . Protection . | . . . . Artifact . | . . . . Weapon 8 | 1 . 3 4 Energy Gun 1 | . . 1 . Energy Cannon . | . . . . Ballistic Gun 5 | 1 . 2 2 Ballistic Cannon 1 | . . . 1 Launcher . | . . . . Special Weapon 1 | . . . 1 Impact Weapon . | . . . . Slashing Weapon . | . . . . Piercing Weapon . | . . . . Special Melee Weapon . | . . . . Unidentified Prototypes . | . . . . Parts Lost 6 | . . 1 5 Power 3 | . . 1 2 Propulsion 1 | . . . 1 Utility . | . . . . Weapon 2 | . . . 2 Highest Loss Streak 4 | . . 1 4 To Critical Strikes . | . . . . Average Backups 4 | . . 1 4 Power . | . . . . Propulsion . | . . . . Utility . | . . . . Weapon 3 | . . 1 4 Tool/Special . | . . . . Unused Backups 2 | . . . 2 Power . | . . . . Propulsion . | . . . . Utility . | . . . . Weapon 2 | . . . 2 Tool/Special . | . . . . Average Slot Usage (%) 75 | . 57 57 79 Engine 1 | . 14 3 . Core 5 | . . . 6 Treads 5 | . . . 6 Leg 16 | . 28 28 14 Device 19 | . . . 22 Energy Gun 1 | . . 10 . Ballistic Gun 20 | . 14 15 21 Special Weapon 4 | . . . 5 Peak Build Rating 28 | 4 4 7 28 Average Rating 18 | 2 4 6 21 On Entrance 3 | . 4 4 6 Naked Turns . | . . . . Heaviest Build 21 | 6 6 8 21 Greatest Support 22 | 20 20 20 22 Greatest Overweight (x) . | . . . . Average Overweight (x) . | . . . . Largest Inventory Capacity 5 | 5 5 5 5 Average Capacity 5 | 5 5 5 5 Most Carried 5 | 3 . 3 5 Average Carried 4 | . . 1 4 Final Capacity 5 | 5 5 5 5 Final Carried 4 | . . 3 4 Class Distribution -------------------- 100% | Mutant Dominant Class ---------------- Mutant | -10/Materials Mutant | -10/Subcaves Mutant | -7/Scraptown Resources | -11 -10 -10 -7 ----------- Run | Yrd Mat Sub Scr Matter Collected 529 | 240 . 21 268 Remotely . | . . . . Salvage Created 250 | . . 121 129 Parts 17 | . . 7 10 Haulers Intercepted . | . . . . Recyclers Shooed . | . . . . Parts Field Recycled . | . . . . Retrieved Matter . | . . . . Parts Self-Destructed 5 | . . 5 . Prevented . | . . . . Kills | -11 -10 -10 -7 ------- Run | Yrd Mat Sub Scr Combat Hostiles Destroyed 7 | . . 3 4 Guns 5 | . . 3 2 Cannons 2 | . . . 2 Classes Destroyed 4 | . . 2 2 Swarmer 1 | . . 1 . Subdweller 2 | . . 2 . Federalist 3 | . . . 3 Explorer 1 | . . . 1 Best Kill Streak 2 | . . 1 2 Combat Bots Only 2 | . . 1 2 Max Kills in Single Turn 1 | . . 1 1 Gunslinging . | . . . . Exploded . | . . . . Melee . | . . . . Uniques/NPCs Destroyed . | . . . . Combat | -11 -10 -10 -7 -------- Run | Yrd Mat Sub Scr Hostile Shots Fired 74 | . . 14 60 Missed 24 | . . 3 21 Hits 50 | . . 11 39 Projectile 50 | . . 11 39 AOE 2 | . . 2 . Critical Strikes 1 | . . . 1 Damage Taken 839 | . . 278 561 Core 252 | . . 69 183 Absorbed by Shields . | . . . . Core Remaining (%) 100 | 100 . . . Volleys Fired 35 | . . 14 21 Largest 2 | . . 2 2 Hottest 80 | . . 80 73 Shots Fired 66 | . . 27 39 Gun 58 | . . 27 31 Cannon 5 | . . . 5 Launcher . | . . . . Special 3 | . . . 3 Kinetic 50 | . . 14 36 Thermal . | . . . . Explosive . | . . . . Electromagnetic 13 | . . 13 . Robot Hit Streak 10 | . . 10 10 Robot Miss Streak 4 | . . 4 2 Penetration Max . | . . . . Secondary Targets 1 | . . 1 . Max Gunslinging Chain 1 | . . 1 . Shots Hit Robots 49 | . . 19 30 Core Hits 14 | . . 7 7 Critical Kills . | . . . . Critical Parts Destroyed . | . . . . Critical Strikes . | . . . . Melee Attacks . | . . . . Impact . | . . . . Slashing . | . . . . Piercing . | . . . . Sneak Attacks . | . . . . Combat Hostiles . | . . . . Follow-up Attacks . | . . . . Damage Inflicted 1015 | . . 275 740 Guns 933 | . . 275 658 Cannons 82 | . . . 82 Explosions . | . . . . Melee . | . . . . Ramming . | . . . . Kinetic 864 | . . 124 740 Thermal . | . . . . Explosive . | . . . . Electromagnetic 151 | . . 151 . Impact . | . . . . Slashing . | . . . . Piercing . | . . . . Highest Corruption . | . . . . Average Corruption . | . . . . Corruption Purged . | . . . . Corruption Blocked . | . . . . Overload Shots . | . . . . Overflow Damage 17 | . . . 17 Projectiles 17 | . . . 17 Explosions . | . . . . Melee . | . . . . Knockbacks . | . . . . Impact . | . . . . Kinetic . | . . . . Secondary . | . . . . Self-Inflicted Damage . | . . . . Shots . | . . . . Rammed . | . . . . Targets Rammed . | . . . . Kicked . | . . . . Crushed . | . . . . Highest Temperature 16 | . . 1 16 Average Temperature 6 | . . 1 8 Received Heat Transfer 301 | . . 24 277 Siege Activations . | . . . . Martial Activations . | . . . . Shielding Activations . | . . . . Robots Disrupted . | . . . . Combat Hostiles . | . . . . Robots Corrupted . | . . . . Combat Hostiles . | . . . . Parts Fried . | . . . . Impact Corruptions . | . . . . Robots Melted . | . . . . Combat Hostiles . | . . . . Parts Melted . | . . . . Heat Transferred . | . . . . Parts Sabotaged . | . . . . Parts Stolen . | . . . . Parts Stripped . | . . . . Power Chain Reactions . | . . . . Alert | -11 -10 -10 -7 ------- Run | Yrd Mat Sub Scr Maximum Alert Level . | . . . . Low Security (%) 100 | 100 100 . . Level 1 . | . . . . Level 2 . | . . . . Level 3 . | . . . . Level 4 . | . . . . Level 5 . | . . . . High Security . | . . . . Max Security . | . . . . Peak Influence . | . . . . Initial . | . . . . Average . | . . . . Influence Increases 30 | . . 30 . Destroy 0b10 Robot/C 20 | . . 20 . Destroy Leader 10 | . . 10 . Influence Decreases 30 | . . 20 10 Entered New Map 10 | . . . 10 Time Decay 20 | . . 20 . Squads Dispatched 1 | . 1 . . Investigation . | . . . . Extermination . | . . . . Reinforcement 1 | . 1 . . Assault . | . . . . Garrison . | . . . . Intercept . | . . . . Searches Triggered . | . . . . Construction Impeded . | . . . . Haulers Reinforced . | . . . . Active Scanning Responses . | . . . . Cargo Convoy Interrupts . | . . . . Stealth | -11 -10 -10 -7 --------- Run | Yrd Mat Sub Scr Distress Signals 1 | . 1 . . Communications Jammed . | . . . . Distress Signals . | . . . . Times Spotted 26 | . . 7 19 Peak Tracking Total 8 | . . 3 8 Tactical Retreats 1 | . . 1 . Traps | -11 -10 -10 -7 ------- Run | Yrd Mat Sub Scr Traps Triggered . | . . . . Indirectly . | . . . . Trap Hack Attempts . | . . . . Triggered . | . . . . Disarmed . | . . . . Reprogrammed . | . . . . Reused . | . . . . Traps Extracted . | . . . . Installed . | . . . . Triggered . | . . . . Machines | -11 -10 -10 -7 ---------- Run | Yrd Mat Sub Scr Machines Disabled 1 | . . . 1 Max in Single Turn 1 | . . . 1 Machines Repaired . | . . . . Machines Dismantled . | . . . . Machines Sabotaged . | . . . . Overloaded Fab Kills . | . . . . Hacking | -11 -10 -10 -7 --------- Run | Yrd Mat Sub Scr Machines Accessed 4 | . . . 4 Terminals . | . . . . Fabricators . | . . . . Repair Stations . | . . . . Recycling Units . | . . . . Scanalyzers . | . . . . Garrison Access . | . . . . Total Hacks 40 | . . . 40 Successful 40 | . . . 40 Failed . | . . . . Catastrophic . | . . . . Database Lockouts . | . . . . Manual . | . . . . Terminals . | . . . . Fabricators . | . . . . Repair Stations . | . . . . Recycling Units . | . . . . Scanalyzers . | . . . . Garrison Access . | . . . . Terminal Hacks 40 | . . . 40 Record 40 | . . . 40 Fabricator Hacks . | . . . . Repair Station Hacks . | . . . . Recycling Unit Hacks . | . . . . Scanalyzer . | . . . . Garrison Access Hacks . | . . . . Unauthorized Hacks . | . . . . Terminals . | . . . . Fabricators . | . . . . Repair Stations . | . . . . Recycling Units . | . . . . Scanalyzers . | . . . . Garrison Access . | . . . . Data Cores Recovered . | . . . . Used . | . . . . Hacking Detections . | . . . . Full Trace Events . | . . . . Feedback Events . | . . . . Feedback Blocked . | . . . . Robot Schematics Acquired . | . . . . Robots Built . | . . . . Authchips . | . . . . Time . | . . . . Total Robot Build Rating . | . . . . Part Schematics Acquired . | . . . . Parts Built . | . . . . Authchips . | . . . . Time . | . . . . Total Part Build Rating . | . . . . Parts Repaired . | . . . . Time . | . . . . Parts Recycled . | . . . . Recycled Matter . | . . . . Retrieved Matter . | . . . . Retrieved Components . | . . . . Parts Scanalyzed . | . . . . Part Schematics Acquired . | . . . . Parts Damaged . | . . . . Bothacking | -11 -10 -10 -7 ------------ Run | Yrd Mat Sub Scr Used RIF Installer . | . . . . Robots Hacked . | . . . . Non-combat . | . . . . Combat . | . . . . Robot Hacks Applied . | . . . . Relay Couplers Released . | . . . . Fabnet Peak Effective % . | . . . . Robots Rewired . | . . . . Allies Hacked . | . . . . Hacks Repelled . | . . . . Allies | -11 -10 -10 -7 -------- Run | Yrd Mat Sub Scr Total Allies . | . . . . Largest Group . | . . . . Highest-Rated Group . | . . . . Highest-Rated Ally . | . . . . Total Orders . | . . . . Ally Attacks . | . . . . Total Damage . | . . . . Kills . | . . . . Allies Corrupted . | . . . . Allies Melted 3 | . . . 3 Intel | -11 -10 -10 -7 ------- Run | Yrd Mat Sub Scr Active Infowar (turns) . | . . . . Robot Analysis Total . | . . . . Derelict Logs Recovered . | . . . . Drone Launches . | . . . . Drone Recoveries . | . . . . Exploration | -11 -10 -10 -7 ------------- Run | Yrd Mat Sub Scr Turns Passed 2049 | 59 54 249 1687 Spaces Moved 1149 | 53 27 157 912 Core 17 | 17 . . . Treads 243 | . . . 243 Legs 889 | 36 27 157 669 Wheels . | . . . . Hover . | . . . . Flight . | . . . . Fastest Speed 50 | 50 120 120 120 Average Speed 124 | 97 120 120 126 Slowest Speed 145 | 120 120 120 145 Overloaded Moves . | . . . . Propulsion Burnouts . | . . . . Robots Hopped . | . . . . Potential Cave-ins . | . . . . Cave-ins Triggered . | . . . . Exploration Rate (%) 17 | 3 8 15 43 Regions Visited 3 Branch Regions 2 Pre-discovered Areas 3 | . . . 3 Known Exits Taken . | . . . . Unknown Exits Taken 3 | 1 1 1 . Scrap Searched 3 | . . . 3 Spaces Dug . | . . . . Terrain Destroyed . | . . . . Melee . | . . . . Projectile . | . . . . AOE . | . . . . Terrain Rammed . | . . . . Walls Destroyed . | . . . . Machines Disabled . | . . . . Actions | -11 -10 -10 -7 --------- Run | Yrd Mat Sub Scr Total 1704 | 60 48 191 1405 Wait 484 | . 22 14 448 Move 1146 | 52 26 156 912 Hop . | . . . . Pick Up 13 | 4 . 4 5 Fast Attach 7 | . . . 7 Attach 6 | 4 . 1 1 Detach . | . . . . Swap 6 | . . 2 4 Drop 7 | . . . 7 Fire 35 | . . 14 21 Melee . | . . . . Ram . | . . . . Kick . | . . . . Crush . | . . . . Escape Stasis . | . . . . Rewire . | . . . . Trap . | . . . . Miscellaneous . | . . . . Route ------- -11/Scrapyard -10/Materials -10/Subcaves -7/Scraptown (discovered 2 exits: Fac x2) History --------- Turn | Location | Event 2 | -11/Scrapyard | Met Revision 17 3 | -11/Scrapyard | Discovered new exit (range 15) 60 | -11/Scrapyard | Entered Materials 61 | -10/Materials | Met a group of wandering Federalists 87 | -10/Materials | Discovered new exit (range 5) 114 | -10/Materials | Entered Subcaves 114 | -10/Subcaves | Accompanied by 1 ally 115 | -10/Subcaves | Continued accompanying wandering Federalists (3) 115 | -10/Subcaves | Approached by a straggling Scientist 140 | -10/Subcaves | Shifting Twisted Machinery released Sub. Machine Gun 143 | -10/Subcaves | Shifting Twisted Machinery released Riot Gun 312 | -10/Subcaves | Build established: Mutant 331 | -10/Subcaves | Shifting Twisted Machinery released Sub. Machine Gun 351 | -10/Subcaves | Wandering Federalist uncovered a shortcut to Scraptown 363 | -10/Subcaves | Entered Scraptown 570 | -7/Scraptown | Visited UFD Registry 570 | -7/Scraptown | Registered with UFD as "Protostep" 589 | -7/Scraptown | Visited Shadow of the Wyrm 634 | -7/Scraptown | Visited Sword Containment 663 | -7/Scraptown | Visited Observation Area 730 | -7/Scraptown | Visited Junk Repository 783 | -7/Scraptown | Visited Scrapoid Pod Storage 811 | -7/Scraptown | Visited Cartography Club 968 | -7/Scraptown | Learned location of Zion (-7) 968 | -7/Scraptown | Learned location of Warlord (-4) 968 | -7/Scraptown | Learned location of Quarantine (-2) 968 | -7/Scraptown | Learned 16 Factory zone layouts 968 | -7/Scraptown | Learned 12 Research zone layouts 968 | -7/Scraptown | Learned 8 Research zone layouts 968 | -7/Scraptown | Learned 4 Mines zone layouts 968 | -7/Scraptown | Learned 24 Upper Caves zone layouts 968 | -7/Scraptown | Learned Storage emergency access door positions 968 | -7/Scraptown | Learned location of 1 exit from Factory 968 | -7/Scraptown | Learned location of 2 exits from Lower Caves 968 | -7/Scraptown | Identified exit to Factory 1018 | -7/Scraptown | Visited Research Penetration Think Tank 1099 | -7/Scraptown | Visited Botcube Research 1126 | -7/Scraptown | Visited Junk Repository 1460 | -7/Scraptown | Met Optimus 1460 | -7/Scraptown | Accepted into 0bPrime 1860 | -7/Scraptown | Civil war broke out across Scraptown 1988 | -7/Scraptown | Lost 7 allies 2046 | -7/Scraptown | Core integrity fell below 50% 2049 | -7/Scraptown | Core integrity fell below 20% 2050 | -7/Scraptown | Destroyed by GU-PKZ(j) with Overtuned Pulse Rifle Last Messages --------------- Barrage Gun. Slug penetrates UFD HQ Gate. Penetrated by Bolt. Acquired 7 matter. Penetrated by Bolt. Slug penetrates GA-1C2(j). Lgt. Deuterium Engine destroyed. CI-ZER(E) suffers critical hit (Burn). Bolt penetrates GA-1C2(j). CI-ZER(E) destroyed. Adv. Treads destroyed. Critical hit (Burn: +50). Slug penetrates Machine. Penetrated by Bolt. Hvy. Machine Gun destroyed. Hvy. Battle Rifle destroyed. GA-1C2(j) destroyed. Slug penetrates OY-RLP(j). VO-S64(j) cannibalizes Aluminum Leg to repair Ovr. Titanium Leg. Map ----- +----------------------------------------------------+ | ?? ????????#"""" """"""""*"" """"" "" "" " | | #???????#" *%=/!=! [%! [%! | | #???????#" !*%=%%% *[ =*![ | | #???????# !* !=/ [%=%* | | ? #???????#" !!!%*! %* [ | | ?# #????####" *!!=![ | | ?# #????"""" =""""""""""""" """" """"" | | ?# #????"""" %"""""""""""""""""""""""" | | ?# #????"""" ""###### ############## | | ?# #???#"""" ""# ##??????? | | ?# #???#"""" ""# X"#??????? | | ?# ###?#""" ""# "" "" ##??????? | | ?# ""#"#"""" ""# "" " X"#??????# | | ?# """"#"""" ""# " " ######### | | ?# ""####### "" !! " !!= | | ?# ###?????#" ""!%* = = *%= | | ?# #########" ""#==" * " ##"###### | | ?# %! "# " /"" """##????# | | ?# = "# "" "" "#??????? | | ?# "# E "#??????? | | ?# !=! &["# ##??????? | | ## %= %* !%" ;##### ############## | | !* &!%! = *= "="""""""""""""""""""" | | %[ * =[*%=!!%== = *"" """= """"""""""" | | =%= %!! =%*=%!=%!!!%!!=![=!!%== | | ! j!!! != *!@[!=[==!=*!*![=!%[ | | j!%! % *!=[%==!j%![[=!= | | %! #""""# 3/!%%[!***%!*![%p!! | | [ #????#" !=*=!!!!%j!g!%*%[! | | #????#""""""%"" """!=![[ [""""""""" | | #### ### ####????#######[########### ########### | | ## #?????????# #??# #?????"" | | ## #?????????# #??#"" #??? | | ## #?????????# #??#" "#?#""" | | ## #?????????#### X###??#" """"" "#?#" | | ## #????????????#"##????#" "???" "#?#""" " | | "## #????????????????????#" "???" "#?#""" " | | " " ### #????????????????????#" "???" "#?#" " | | # # #?# #????????????????????#" "???" "#???"""" | | ######?# #????????????????????#" """"" "#???#### | | ???????# #????????????????????#" "#??????? | | ???????# #????????????????????#"""""""""#??????? | | ??###### #????????????????????###########??????? | | """""""" #?????????????????????????????????????? | | "" """"" #?????????????????????????????????????? | | " " "" #?????????????????????????????????????? | | #?????????????????????????????????????? | | "" "" " #?????????????????????????????????????? | | ?""""""" #?????????????????????????????????????? | | ??"""""" #?????????????????????????????????????? | +----------------------------------------------------+ Best States ------------- Heat Dissipation 52 Coolant Potential 65 Energy Generation 18 Energy Capacity 250 Matter Stores 300 Matter Capacity 300 Sight Range 16 Terrain Scan Density 10 Evasion (%) 55 Recoil Reduction 1 Item Schematics ----------------- None Robot Schematics ------------------ None Fabricated ------------ Nothing Repaired ---------- Nothing Alien Tech Used ----------------- None Achievements -------------- None Challenges ------------ None Game ------ Seed PiercingZhirovSubcomponent Manual? 0 Play Time 00:19:22 Cumulative 82.1 hours Start 2025.08.06 @ 19:41:13 End 2025.08.06 @ 20:02:29 Sessions 1 Manual Loads 0 Difficulty Rogue Special Mode None Game No. 327 Rogue 327 Adventurer 0 Explorer 0 Win Type - Total 0 Types 0/0/0/0/0/0/0/0/0/0 Lore% 34 Gallery% 36 Achievement% 30 Wizard Run 0 Options --------- Layout 2 ASCII 0 Keyboard 0 Movement Mouse Keybinds 0 Fullscreen 2 Font 24/Smallcaps Map View 50x44 Zoom Use 0% Tactical HUD 0 Map Filters NONE Filters NONE Steam 1 RUN: f67202f0-2bb9-4ba0-a0c4-5c1d57016b20